Department family,Entity,Date,Expense type,Expense area,Supplier,Transaction number,Amount,VAT registration number,
Department for Business Energy and Industrial Strategy,Intellectual Property Office,06/09/2017,Accommodation,People Places & Serv Directorate,HSM UK Ltd,90886587CN,-530.22,Not Applicable,
Department for Business Energy and Industrial Strategy,Intellectual Property Office,08/09/2017,Accommodation,People Places & Serv Directorate,VCUK TWC Facilities Division,17090309,528.24,Not Applicable,
Department for Business Energy and Industrial Strategy,Intellectual Property Office,11/09/2017,Accommodation,People Places & Serv Directorate,Thomas Waste Management Ltd,179734,573.24,Not Applicable,
Department for Business Energy and Industrial Strategy,Intellectual Property Office,06/09/2017,Accommodation,People Places & Serv Directorate,Thomas Waste Management Ltd,180804,654.84,Not Applicable,
Department for Business Energy and Industrial Strategy,Intellectual Property Office,06/09/2017,Accommodation,People Places & Serv Directorate,Thomas Waste Management Ltd,180833,672.00,Not Applicable,
Department for Business Energy and Industrial Strategy,Intellectual Property Office,21/09/2017,Accommodation,People Places & Serv Directorate,Total Security Protection Ltd,30946,810.00,Not Applicable,
Department for Business Energy and Industrial Strategy,Intellectual Property Office,15/09/2017,Accommodation,People Places & Serv Directorate,Corona Energy,12375615,904.72,Not Applicable,
Department for Business Energy and Industrial Strategy,Intellectual Property Office,28/09/2017,Accommodation,People Places & Serv Directorate,HFX Ltd,26580,1020.00,Not Applicable,
Department for Business Energy and Industrial Strategy,Intellectual Property Office,28/09/2017,Accommodation,People Places & Serv Directorate,Total Security Protection Ltd,30586,1159.00,Not Applicable,
Department for Business Energy and Industrial Strategy,Intellectual Property Office,28/09/2017,Accommodation,People Places & Serv Directorate,Total Security Protection Ltd,30833,1159.00,Not Applicable,
Department for Business Energy and Industrial Strategy,Intellectual Property Office,26/09/2017,Accommodation,People Places & Serv Directorate,Total Security Protection Ltd,30500,1159.01,Not Applicable,
Department for Business Energy and Industrial Strategy,Intellectual Property Office,06/09/2017,Accommodation,People Places & Serv Directorate,Quality Floorcare Ltd,15593,1200.00,Not Applicable,
Department for Business Energy and Industrial Strategy,Intellectual Property Office,15/09/2017,Accommodation,People Places & Serv Directorate,Jaguar Building Services Ltd,74154,1267.19,Not Applicable,
Department for Business Energy and Industrial Strategy,Intellectual Property Office,25/09/2017,Accommodation,People Places & Serv Directorate,Healthy Workstations Ltd,31282,1293.17,Not Applicable,
Department for Business Energy and Industrial Strategy,Intellectual Property Office,08/09/2017,Accommodation,People Places & Serv Directorate,EDF ENERGY,3258903,1349.30,Not Applicable,
Department for Business Energy and Industrial Strategy,Intellectual Property Office,06/09/2017,Accommodation,People Places & Serv Directorate,Pro Investments Limited,106911,1412.35,Not Applicable,
Department for Business Energy and Industrial Strategy,Intellectual Property Office,15/09/2017,Accommodation,People Places & Serv Directorate,Shred It Ltd,9502539710,1526.40,Not Applicable,
Department for Business Energy and Industrial Strategy,Intellectual Property Office,26/09/2017,Accommodation,People Places & Serv Directorate,Applied Products,517204,1620.42,Not Applicable,
Department for Business Energy and Industrial Strategy,Intellectual Property Office,20/09/2017,Accommodation,People Places & Serv Directorate,UK Shared Business Services Ltd,SBS-14952,2315.90,Not Applicable,
Department for Business Energy and Industrial Strategy,Intellectual Property Office,28/09/2017,Accommodation,People Places & Serv Directorate,Accelerate Cleaning Solutions Ltd,4073,2408.95,Not Applicable,
Department for Business Energy and Industrial Strategy,Intellectual Property Office,08/09/2017,Accommodation,People Places & Serv Directorate,Accelerate Cleaning Solutions Ltd,4203,2408.95,Not Applicable,
Department for Business Energy and Industrial Strategy,Intellectual Property Office,27/09/2017,Accommodation,People Places & Serv Directorate,Senator International Ltd,S01407017,2928.42,Not Applicable,
Department for Business Energy and Industrial Strategy,Intellectual Property Office,06/09/2017,Accommodation,People Places & Serv Directorate,ENGIE Services Limited,1800026008,3360.00,Not Applicable,
Department for Business Energy and Industrial Strategy,Intellectual Property Office,06/09/2017,Accommodation,People Places & Serv Directorate,ENGIE Services Limited,1800026009,3360.00,Not Applicable,
Department for Business Energy and Industrial Strategy,Intellectual Property Office,20/09/2017,Accommodation,People Places & Serv Directorate,ENGIE Services Limited,1800026653,3360.00,Not Applicable,
Department for Business Energy and Industrial Strategy,Intellectual Property Office,26/09/2017,Accommodation,People Places & Serv Directorate,Brookfield Office Property Management Li,2017.62,5144.00,Not Applicable,
Department for Business Energy and Industrial Strategy,Intellectual Property Office,12/09/2017,Accommodation,People Places & Serv Directorate,Magscapes Ltd,INV-2485,6362.40,Not Applicable,
Department for Business Energy and Industrial Strategy,Intellectual Property Office,25/09/2017,Accommodation,People Places & Serv Directorate,Department For Business Innovation & Ski,6.1511E+11,7410.00,Not Applicable,
Department for Business Energy and Industrial Strategy,Intellectual Property Office,25/09/2017,Accommodation,People Places & Serv Directorate,Department For Business Innovation & Ski,6.1511E+11,7604.99,Not Applicable,
Department for Business Energy and Industrial Strategy,Intellectual Property Office,19/09/2017,Accommodation,People Places & Serv Directorate,Senator International Ltd,S01405192,10382.58,Not Applicable,
Department for Business Energy and Industrial Strategy,Intellectual Property Office,22/09/2017,Accommodation,People Places & Serv Directorate,Brookfield Office Property Management Li,2017-33,10682.30,Not Applicable,
Department for Business Energy and Industrial Strategy,Intellectual Property Office,28/09/2017,Accommodation,People Places & Serv Directorate,Infineon Technologies,IRNPT-1728,11500.00,Not Applicable,
Department for Business Energy and Industrial Strategy,Intellectual Property Office,25/09/2017,Accommodation,People Places & Serv Directorate,Department For Business Innovation & Ski,6.1511E+11,9871.68,Not Applicable,
Department for Business Energy and Industrial Strategy,Intellectual Property Office,07/09/2017,Accommodation,People Places & Serv Directorate,Quality Floorcare Ltd,15588,11940.00,Not Applicable,
Department for Business Energy and Industrial Strategy,Intellectual Property Office,11/09/2017,Accommodation,People Places & Serv Directorate,Department For Business Innovation & Ski,6.1511E+11,10597.89,Not Applicable,
Department for Business Energy and Industrial Strategy,Intellectual Property Office,11/09/2017,Accommodation,People Places & Serv Directorate,Department For Business Innovation & Ski,6.1511E+11,11079.61,Not Applicable,
Department for Business Energy and Industrial Strategy,Intellectual Property Office,11/09/2017,Accommodation,People Places & Serv Directorate,Department For Business Innovation & Ski,6.1511E+11,11552.41,Not Applicable,
Department for Business Energy and Industrial Strategy,Intellectual Property Office,11/09/2017,Accommodation,People Places & Serv Directorate,Department For Business Innovation & Ski,6.1511E+11,11560.67,Not Applicable,
Department for Business Energy and Industrial Strategy,Intellectual Property Office,11/09/2017,Accommodation,People Places & Serv Directorate,Department For Business Innovation & Ski,6.1511E+11,11593.85,Not Applicable,
Department for Business Energy and Industrial Strategy,Intellectual Property Office,11/09/2017,Accommodation,People Places & Serv Directorate,Department For Business Innovation & Ski,6.1511E+11,11593.85,Not Applicable,
Department for Business Energy and Industrial Strategy,Intellectual Property Office,11/09/2017,Accommodation,People Places & Serv Directorate,Department For Business Innovation & Ski,6.1511E+11,11593.85,Not Applicable,
Department for Business Energy and Industrial Strategy,Intellectual Property Office,11/09/2017,Accommodation,People Places & Serv Directorate,Department For Business Innovation & Ski,6.1511E+11,11593.85,Not Applicable,
Department for Business Energy and Industrial Strategy,Intellectual Property Office,11/09/2017,Accommodation,People Places & Serv Directorate,Department For Business Innovation & Ski,6.1511E+11,11593.85,Not Applicable,
Department for Business Energy and Industrial Strategy,Intellectual Property Office,11/09/2017,Accommodation,People Places & Serv Directorate,Department For Business Innovation & Ski,6.1511E+11,11593.85,Not Applicable,
Department for Business Energy and Industrial Strategy,Intellectual Property Office,11/09/2017,Accommodation,People Places & Serv Directorate,Department For Business Innovation & Ski,6.1511E+11,11593.85,Not Applicable,
Department for Business Energy and Industrial Strategy,Intellectual Property Office,11/09/2017,Accommodation,People Places & Serv Directorate,Department For Business Innovation & Ski,6.1511E+11,11637.88,Not Applicable,
Department for Business Energy and Industrial Strategy,Intellectual Property Office,19/09/2017,Accommodation,People Places & Serv Directorate,Senator International Ltd,S01405191,16127.81,Not Applicable,
Department for Business Energy and Industrial Strategy,Intellectual Property Office,06/09/2017,Accommodation,People Places & Serv Directorate,Pro Investments Limited,106910,21000.00,Not Applicable,
Department for Business Energy and Industrial Strategy,Intellectual Property Office,08/09/2017,Accommodation,People Places & Serv Directorate,EDF ENERGY,3259174,28495.84,Not Applicable,
Department for Business Energy and Industrial Strategy,Intellectual Property Office,06/09/2017,Accommodation,People Places & Serv Directorate,Department of Energy and Climate Change,CRCFP7241892,27760.80,Not Applicable,
Department for Business Energy and Industrial Strategy,Intellectual Property Office,15/09/2017,Accommodation,People Places & Serv Directorate,D&M Mechanical Engineers Ltd,3069,36000.00,Not Applicable,
Department for Business Energy and Industrial Strategy,Intellectual Property Office,11/09/2017,Accommodation,People Places & Serv Directorate,Department For Business Innovation & Ski,6.1511E+11,34237.16,Not Applicable,
Department for Business Energy and Industrial Strategy,Intellectual Property Office,25/09/2017,Accommodation,People Places & Serv Directorate,Department For Business Innovation & Ski,6.1511E+11,49143.44,Not Applicable,
Department for Business Energy and Industrial Strategy,Intellectual Property Office,11/09/2017,Accommodation,People Places & Serv Directorate,Department For Business Innovation & Ski,6.1511E+11,94404.75,Not Applicable,
Department for Business Energy and Industrial Strategy,Intellectual Property Office,20/09/2017,Accommodation,People Places & Serv Directorate,Department For Business Innovation & Ski,6.1511E+11,202577.00,Not Applicable,
Department for Business Energy and Industrial Strategy,Intellectual Property Office,11/09/2017,Accommodation,People Places & Serv Directorate,Office for National Statistics,2070002,320868.00,Not Applicable,
Department for Business Energy and Industrial Strategy,Intellectual Property Office,27/09/2017,Accommodation,People Places & Serv Directorate,London Borough of Tower Hamlets,65958270-APR2017,399200.00,Not Applicable,
Department for Business Energy and Industrial Strategy,Intellectual Property Office,14/09/2017,Information Technology,Projects,Agile Solutions GB Ltd,CN-3166,-4320.00,Not Applicable,
Department for Business Energy and Industrial Strategy,Intellectual Property Office,21/09/2017,Information Technology,Projects,Top Level Computing,5064,-765.43,Not Applicable,
Department for Business Energy and Industrial Strategy,Intellectual Property Office,27/09/2017,Information Technology,IT Directorate,Bytes Software Services Ltd,489555,515.56,Not Applicable,
Department for Business Energy and Industrial Strategy,Intellectual Property Office,19/09/2017,Information Technology,IT Directorate,Capita Business Services  Ltd,LO10218532,562.94,Not Applicable,
Department for Business Energy and Industrial Strategy,Intellectual Property Office,11/09/2017,Information Technology,Projects,Pirean Ltd,2934,586.25,Not Applicable,
Department for Business Energy and Industrial Strategy,Intellectual Property Office,22/09/2017,Information Technology,IT Directorate,Capita Business Services  Ltd,LO10219338,702.96,Not Applicable,
Department for Business Energy and Industrial Strategy,Intellectual Property Office,07/09/2017,Information Technology,People Places & Serv Directorate,"Smartsheet.com, Inc.",INV28195,690.00,Not Applicable,
Department for Business Energy and Industrial Strategy,Intellectual Property Office,19/09/2017,Information Technology,IT Directorate,Capita Business Services  Ltd,LO10218532,1004.22,Not Applicable,
Department for Business Energy and Industrial Strategy,Intellectual Property Office,05/09/2017,Information Technology,IT Directorate,Capita Business Services  Ltd,LO10215735,1055.65,Not Applicable,
Department for Business Energy and Industrial Strategy,Intellectual Property Office,05/09/2017,Information Technology,IT Directorate,Capita Business Services  Ltd,LO10215735,1071.17,Not Applicable,
Department for Business Energy and Industrial Strategy,Intellectual Property Office,11/09/2017,Information Technology,IT Directorate,Capita Business Services  Ltd,LO10217425,1071.17,Not Applicable,
Department for Business Energy and Industrial Strategy,Intellectual Property Office,15/09/2017,Information Technology,IT Directorate,Bytes Software Services Ltd,490100,1310.40,Not Applicable,
Department for Business Energy and Industrial Strategy,Intellectual Property Office,19/09/2017,Information Technology,IT Directorate,Capita Business Services  Ltd,LO10218532,1401.97,Not Applicable,
Department for Business Energy and Industrial Strategy,Intellectual Property Office,18/09/2017,Information Technology,IT Directorate,Snowbound Software Corporation,2017-340,1228.62,Not Applicable,
Department for Business Energy and Industrial Strategy,Intellectual Property Office,26/09/2017,Information Technology,IT Directorate,Specialist Computer Centres Plc,OP-M343618,1553.54,Not Applicable,
Department for Business Energy and Industrial Strategy,Intellectual Property Office,20/09/2017,Information Technology,IT Directorate,Specialist Computer Centres Plc,OP-M349364,1645.96,Not Applicable,
Department for Business Energy and Industrial Strategy,Intellectual Property Office,22/09/2017,Information Technology,IT Directorate,Capita Business Services  Ltd,LO10219338,1999.78,Not Applicable,
Department for Business Energy and Industrial Strategy,Intellectual Property Office,22/09/2017,Information Technology,IT Directorate,Capita Business Services  Ltd,LO10219338,2022.42,Not Applicable,
Department for Business Energy and Industrial Strategy,Intellectual Property Office,22/09/2017,Information Technology,IT Directorate,Capita Business Services  Ltd,LO10219338,2111.30,Not Applicable,
Department for Business Energy and Industrial Strategy,Intellectual Property Office,11/09/2017,Information Technology,IT Directorate,Capita Business Services  Ltd,LO10217425,2129.68,Not Applicable,
Department for Business Energy and Industrial Strategy,Intellectual Property Office,14/09/2017,Information Technology,IT Directorate,LA International Computer Consultants Lt,LA453445,2218.99,Not Applicable,
Department for Business Energy and Industrial Strategy,Intellectual Property Office,22/09/2017,Information Technology,IT Directorate,Capita Business Services  Ltd,LO10219338,2282.94,Not Applicable,
Department for Business Energy and Industrial Strategy,Intellectual Property Office,19/09/2017,Information Technology,IT Directorate,Capita Business Services  Ltd,LO10218532,2482.36,Not Applicable,
Department for Business Energy and Industrial Strategy,Intellectual Property Office,22/09/2017,Information Technology,IT Directorate,Capita Business Services  Ltd,LO10219338,2509.49,Not Applicable,
Department for Business Energy and Industrial Strategy,Intellectual Property Office,14/09/2017,Information Technology,IT Directorate,LA International Computer Consultants Lt,LA453446,2517.50,Not Applicable,
Department for Business Energy and Industrial Strategy,Intellectual Property Office,11/09/2017,Information Technology,IT Directorate,Capita Business Services  Ltd,LO10217425,2569.87,Not Applicable,
Department for Business Energy and Industrial Strategy,Intellectual Property Office,22/09/2017,Information Technology,IT Directorate,Capita Business Services  Ltd,LO10219338,2569.87,Not Applicable,
Department for Business Energy and Industrial Strategy,Intellectual Property Office,19/09/2017,Information Technology,IT Directorate,Capita Business Services  Ltd,LO10218532,2594.99,Not Applicable,
Department for Business Energy and Industrial Strategy,Intellectual Property Office,22/09/2017,Information Technology,IT Directorate,Capita Business Services  Ltd,LO10219338,2962.81,Not Applicable,
Department for Business Energy and Industrial Strategy,Intellectual Property Office,22/09/2017,Information Technology,IT Directorate,Capita Business Services  Ltd,LO10219338,2962.81,Not Applicable,
Department for Business Energy and Industrial Strategy,Intellectual Property Office,22/09/2017,Information Technology,IT Directorate,Capita Business Services  Ltd,LO10219338,2997.90,Not Applicable,
Department for Business Energy and Industrial Strategy,Intellectual Property Office,22/09/2017,Information Technology,IT Directorate,Capita Business Services  Ltd,LO10219338,2997.90,Not Applicable,
Department for Business Energy and Industrial Strategy,Intellectual Property Office,22/09/2017,Information Technology,IT Directorate,Capita Business Services  Ltd,LO10219338,3037.06,Not Applicable,
Department for Business Energy and Industrial Strategy,Intellectual Property Office,05/09/2017,Information Technology,IT Directorate,Capita Business Services  Ltd,LO10215735,3145.44,Not Applicable,
Department for Business Energy and Industrial Strategy,Intellectual Property Office,11/09/2017,Information Technology,IT Directorate,Capita Business Services  Ltd,LO10217425,3145.44,Not Applicable,
Department for Business Energy and Industrial Strategy,Intellectual Property Office,22/09/2017,Information Technology,IT Directorate,Capita Business Services  Ltd,LO10219338,3145.44,Not Applicable,
Department for Business Energy and Industrial Strategy,Intellectual Property Office,22/09/2017,Information Technology,IT Directorate,Capita Business Services  Ltd,LO10219338,3145.44,Not Applicable,
Department for Business Energy and Industrial Strategy,Intellectual Property Office,04/09/2017,Information Technology,IT Directorate,LA International Computer Consultants Lt,LA451480,3146.88,Not Applicable,
Department for Business Energy and Industrial Strategy,Intellectual Property Office,08/09/2017,Information Technology,IT Directorate,LA International Computer Consultants Lt,LA452700,3146.88,Not Applicable,
Department for Business Energy and Industrial Strategy,Intellectual Property Office,05/09/2017,Information Technology,IT Directorate,Capita Business Services  Ltd,LO10215735,3538.62,Not Applicable,
Department for Business Energy and Industrial Strategy,Intellectual Property Office,04/09/2017,Information Technology,IT Directorate,LA International Computer Consultants Lt,LA451479,3586.32,Not Applicable,
Department for Business Energy and Industrial Strategy,Intellectual Property Office,05/09/2017,Information Technology,IT Directorate,Capita Business Services  Ltd,LO10215735,4055.59,Not Applicable,
Department for Business Energy and Industrial Strategy,Intellectual Property Office,19/09/2017,Information Technology,IT Directorate,Capita Business Services  Ltd,LO10218532,4618.82,Not Applicable,
Department for Business Energy and Industrial Strategy,Intellectual Property Office,21/09/2017,Information Technology,Projects,Top Level Computing,5043,4854.89,Not Applicable,
Department for Business Energy and Industrial Strategy,Intellectual Property Office,19/09/2017,Information Technology,IT Directorate,Capita Business Services  Ltd,LO10218532,5070.18,Not Applicable,
Department for Business Energy and Industrial Strategy,Intellectual Property Office,22/09/2017,Information Technology,IT Directorate,Verisign,520005476,4458.68,Not Applicable,
Department for Business Energy and Industrial Strategy,Intellectual Property Office,07/09/2017,Information Technology,IT Directorate,Perago-Wales,PM001,6000.00,Not Applicable,
Department for Business Energy and Industrial Strategy,Intellectual Property Office,18/09/2017,Information Technology,IT Directorate,Phoenix Software Ltd,OP-I804872,6380.40,Not Applicable,
Department for Business Energy and Industrial Strategy,Intellectual Property Office,29/09/2017,Information Technology,IT Directorate,Ingram Publishing,122672,7189.74,Not Applicable,
Department for Business Energy and Industrial Strategy,Intellectual Property Office,11/09/2017,Information Technology,IT Directorate,Capita Business Services  Ltd,LO10217425,7778.33,Not Applicable,
Department for Business Energy and Industrial Strategy,Intellectual Property Office,14/09/2017,Information Technology,Projects,Agile Solutions GB Ltd,INV-3151,8640.00,Not Applicable,
Department for Business Energy and Industrial Strategy,Intellectual Property Office,05/09/2017,Information Technology,Projects,SANDHILL CONSULTANTS LTD,IN4059092,10260.00,Not Applicable,
Department for Business Energy and Industrial Strategy,Intellectual Property Office,20/09/2017,Information Technology,IT Directorate,Avepoint UK Ltd,1709040950A,10790.40,Not Applicable,
Department for Business Energy and Industrial Strategy,Intellectual Property Office,15/09/2017,Information Technology,Projects,Pirean Ltd,2937,12822.00,Not Applicable,
Department for Business Energy and Industrial Strategy,Intellectual Property Office,06/09/2017,Information Technology,Projects,Top Level Computing,5041,14589.55,Not Applicable,
Department for Business Energy and Industrial Strategy,Intellectual Property Office,08/09/2017,Information Technology,IT Directorate,Equal Experts UK Limited,INV-3287,15000.00,Not Applicable,
Department for Business Energy and Industrial Strategy,Intellectual Property Office,12/09/2017,Information Technology,IT Directorate,Agile Solutions GB Ltd,INV-3165,16650.00,Not Applicable,
Department for Business Energy and Industrial Strategy,Intellectual Property Office,18/09/2017,Information Technology,Patent Directorate,STN,9340315573,14179.06,Not Applicable,
Department for Business Energy and Industrial Strategy,Intellectual Property Office,21/09/2017,Information Technology,Projects,Top Level Computing,5055,17462.26,Not Applicable,
Department for Business Energy and Industrial Strategy,Intellectual Property Office,22/09/2017,Information Technology,IT Directorate,McAfee Security UK Ltd,901635824,18000.00,Not Applicable,
Department for Business Energy and Industrial Strategy,Intellectual Property Office,18/09/2017,Information Technology,Projects,Silver Marlin Associates Ltd,IPO2005,18630.00,Not Applicable,
Department for Business Energy and Industrial Strategy,Intellectual Property Office,08/09/2017,Information Technology,IT Directorate,"Positive Cashflow Finance Ltd ""SQA Ltd""",HSR-BB-AC-2128,19200.00,Not Applicable,
Department for Business Energy and Industrial Strategy,Intellectual Property Office,26/09/2017,Information Technology,IT Directorate,Bytes Software Services Ltd,490463,26205.08,Not Applicable,
Department for Business Energy and Industrial Strategy,Intellectual Property Office,28/09/2017,Information Technology,Projects,Agile Solutions GB Ltd,INV-3188,30720.00,Not Applicable,
Department for Business Energy and Industrial Strategy,Intellectual Property Office,06/09/2017,Information Technology,IT Directorate,SANDHILL CONSULTANTS LTD,IN4059033,31215.36,Not Applicable,
Department for Business Energy and Industrial Strategy,Intellectual Property Office,14/09/2017,Information Technology,IT Directorate,"Positive Cashflow Finance Ltd ""SQA Ltd""",HSR-BB-AC-2127,35640.00,Not Applicable,
Department for Business Energy and Industrial Strategy,Intellectual Property Office,15/09/2017,Information Technology,Projects,Agile Solutions GB Ltd,INV-3164,56700.00,Not Applicable,
Department for Business Energy and Industrial Strategy,Intellectual Property Office,08/09/2017,Information Technology,Projects,Pirean Ltd,2926,62925.71,Not Applicable,
Department for Business Energy and Industrial Strategy,Intellectual Property Office,06/09/2017,Information Technology,IT Directorate,Dell Corporation Ltd,7402382849,78568.44,Not Applicable,
Department for Business Energy and Industrial Strategy,Intellectual Property Office,22/09/2017,Information Technology,Patent Directorate,European Patent Office,40272526,120959.39,Not Applicable,
Department for Business Energy and Industrial Strategy,Intellectual Property Office,22/09/2017,Information Technology,IT Directorate,Insight Direct (UK) Ltd,3545944,698132.58,Not Applicable,
Department for Business Energy and Industrial Strategy,Intellectual Property Office,19/09/2017,Legal & Hearings,Trade Mark Directorate,Government Legal Department,444896,222.84,Not Applicable,
Department for Business Energy and Industrial Strategy,Intellectual Property Office,19/09/2017,Legal & Hearings,Patent Directorate,Government Legal Department,444896,300.13,Not Applicable,
Department for Business Energy and Industrial Strategy,Intellectual Property Office,18/09/2017,Legal & Hearings,Trade Mark Directorate,Marten Walsh Cherer Ltd,96021,909.22,Not Applicable,
Department for Business Energy and Industrial Strategy,Intellectual Property Office,15/09/2017,Legal & Hearings,People Places & Serv Directorate,Capital Law LLP,20040204,1093.80,Not Applicable,
Department for Business Energy and Industrial Strategy,Intellectual Property Office,05/09/2017,Legal & Hearings,People Places & Serv Directorate,Capital Law LLP,20040232,5976.60,Not Applicable,
Department for Business Energy and Industrial Strategy,Intellectual Property Office,20/09/2017,Legal & Hearings,Trade Mark Directorate,Government Legal Department,444987,9194.82,Not Applicable,
Department for Business Energy and Industrial Strategy,Intellectual Property Office,07/09/2017,Marketing & Publicity,Innovation Directorate,thebestof Exeter Ltd t/a South West Busi,1092017,670.56,Not Applicable,
Department for Business Energy and Industrial Strategy,Intellectual Property Office,08/09/2017,Marketing & Publicity,Innovation Directorate,Norfolk Chamber of Commerce and Industry,77211,690.00,Not Applicable,
Department for Business Energy and Industrial Strategy,Intellectual Property Office,27/09/2017,Marketing & Publicity,Innovation Directorate,1 Events Media Ltd,INV-1EM0925,720.00,Not Applicable,
Department for Business Energy and Industrial Strategy,Intellectual Property Office,12/09/2017,Marketing & Publicity,Innovation Directorate,Upper Street Events,74303,1962.00,Not Applicable,
Department for Business Energy and Industrial Strategy,Intellectual Property Office,11/09/2017,Marketing & Publicity,Innovation Directorate,Prospects Services,59889,7056.00,Not Applicable,
Department for Business Energy and Industrial Strategy,Intellectual Property Office,18/09/2017,Misc Expenses Finance,Finance Directorate,G4S Cash Services (UK) Ltd,2093538,557.42,Not Applicable,
Department for Business Energy and Industrial Strategy,Intellectual Property Office,08/09/2017,Miscellaneous Expenses General,Innovation Directorate,Veezu Ltd T/A Dragon Taxis (Newport),3706,318.60,Not Applicable,
Department for Business Energy and Industrial Strategy,Intellectual Property Office,26/09/2017,Miscellaneous Expenses General,Trade Mark Directorate,FCO Services,6062426,525.00,Not Applicable,
Department for Business Energy and Industrial Strategy,Intellectual Property Office,07/09/2017,Miscellaneous Expenses General,Innovation Directorate,MSCA,MCA3438,600.00,Not Applicable,
Department for Business Energy and Industrial Strategy,Intellectual Property Office,06/09/2017,Miscellaneous Expenses General,People Places & Serv Directorate,Anthony Collins Solicitors LLP,284781,600.00,Not Applicable,
Department for Business Energy and Industrial Strategy,Intellectual Property Office,11/09/2017,Miscellaneous Expenses General,People Places & Serv Directorate,Zenith,33947,1033.20,Not Applicable,
Department for Business Energy and Industrial Strategy,Intellectual Property Office,22/09/2017,Miscellaneous Expenses General,People Places & Serv Directorate,Pick Everard,49652,1204.92,Not Applicable,
Department for Business Energy and Industrial Strategy,Intellectual Property Office,18/09/2017,Miscellaneous Expenses General,People Places & Serv Directorate,Colt Technology Services,2.0171E+12,1979.81,Not Applicable,
Department for Business Energy and Industrial Strategy,Intellectual Property Office,08/09/2017,Miscellaneous Expenses General,People Places & Serv Directorate,Business in the Community,SIN053210,5100.00,Not Applicable,
Department for Business Energy and Industrial Strategy,Intellectual Property Office,07/09/2017,Miscellaneous Expenses General,IT Directorate,Responsiv Solutions Limited,RSL0353,6574.06,Not Applicable,
Department for Business Energy and Industrial Strategy,Intellectual Property Office,15/09/2017,Miscellaneous Expenses General,People Places & Serv Directorate,Department For Business Innovation & Ski,6.1511E+11,6312.00,Not Applicable,
Department for Business Energy and Industrial Strategy,Intellectual Property Office,25/09/2017,Miscellaneous Expenses General,International Policy Directorate,China-Britain Business Council,32823,18762.00,Not Applicable,
Department for Business Energy and Industrial Strategy,Intellectual Property Office,05/09/2017,Miscellaneous Expenses General,Finance Directorate,NATIONAL AUDIT OFFICE,SIN000823,40000.00,Not Applicable,
Department for Business Energy and Industrial Strategy,Intellectual Property Office,29/09/2017,Office Machinery,People Places & Serv Directorate,Xerox (UK) Ltd,1607276475,599.98,Not Applicable,
Department for Business Energy and Industrial Strategy,Intellectual Property Office,29/09/2017,Office Machinery,People Places & Serv Directorate,Xerox (UK) Ltd,1607276476,599.98,Not Applicable,
Department for Business Energy and Industrial Strategy,Intellectual Property Office,08/09/2017,Office Machinery,People Places & Serv Directorate,Xerox (UK) Ltd,1607181169,985.97,Not Applicable,
Department for Business Energy and Industrial Strategy,Intellectual Property Office,29/09/2017,Office Machinery,People Places & Serv Directorate,Xerox (UK) Ltd,1607276478,1027.19,Not Applicable,
Department for Business Energy and Industrial Strategy,Intellectual Property Office,29/09/2017,Office Machinery,People Places & Serv Directorate,Xerox (UK) Ltd,1607276479,1027.19,Not Applicable,
Department for Business Energy and Industrial Strategy,Intellectual Property Office,12/09/2017,Office Machinery,People Places & Serv Directorate,Xerox Finance,97157371,2557.08,Not Applicable,
Department for Business Energy and Industrial Strategy,Intellectual Property Office,12/09/2017,Office Machinery,People Places & Serv Directorate,Xerox Finance,97157370,2983.45,Not Applicable,
Department for Business Energy and Industrial Strategy,Intellectual Property Office,08/09/2017,Office Machinery,People Places & Serv Directorate,Xerox Finance,97157369,34243.73,Not Applicable,
Department for Business Energy and Industrial Strategy,Intellectual Property Office,01/09/2017,Office Supplies,Finance Directorate,South East Drawing Office Ltd,12749,659.40,Not Applicable,
Department for Business Energy and Industrial Strategy,Intellectual Property Office,12/09/2017,Office Supplies,People Places & Serv Directorate,Antalis,7108338,681.42,Not Applicable,
Department for Business Energy and Industrial Strategy,Intellectual Property Office,25/09/2017,Office Supplies,People Places & Serv Directorate,Antalis,7139087,681.42,Not Applicable,
Department for Business Energy and Industrial Strategy,Intellectual Property Office,13/09/2017,Office Supplies,Patent Directorate,British Library,139790122,734.10,Not Applicable,
Department for Business Energy and Industrial Strategy,Intellectual Property Office,26/09/2017,Office Supplies,Patent Directorate,ESS EUROPEAN SUBSCRIPTION SERVICE UK LTD,2543504,1200.00,Not Applicable,
Department for Business Energy and Industrial Strategy,Intellectual Property Office,26/09/2017,Office Supplies,Patent Directorate,EBSCO Information Services,1803398,1494.61,Not Applicable,
Department for Business Energy and Industrial Strategy,Intellectual Property Office,06/09/2017,Office Supplies,People Places & Serv Directorate,Antalis,7103987,2540.96,Not Applicable,
Department for Business Energy and Industrial Strategy,Intellectual Property Office,13/09/2017,Office Supplies,People Places & Serv Directorate,Blake Envelopes,SI0000521190,2966.40,Not Applicable,
Department for Business Energy and Industrial Strategy,Intellectual Property Office,20/09/2017,Other FA at Cost,IT Directorate,Specialist Computer Centres Plc,OP-M348477,1163.17,Not Applicable,
Department for Business Energy and Industrial Strategy,Intellectual Property Office,15/09/2017,Pay Costs,Patent Directorate,Brook Street (UK) Ltd,30606765,118.62,Not Applicable,
Department for Business Energy and Industrial Strategy,Intellectual Property Office,15/09/2017,Pay Costs,People Places & Serv Directorate,Brook Street (UK) Ltd,30606765,208.50,Not Applicable,
Department for Business Energy and Industrial Strategy,Intellectual Property Office,29/09/2017,Pay Costs,Patent Directorate,Brook Street (UK) Ltd,30642368,218.52,Not Applicable,
Department for Business Energy and Industrial Strategy,Intellectual Property Office,04/09/2017,Pay Costs,People Places & Serv Directorate,Brook Street (UK) Ltd,30595551,327.78,Not Applicable,
Department for Business Energy and Industrial Strategy,Intellectual Property Office,25/09/2017,Pay Costs,Patent Directorate,Brook Street (UK) Ltd,30630111,371.50,Not Applicable,
Department for Business Energy and Industrial Strategy,Intellectual Property Office,15/09/2017,Pay Costs,Patent Directorate,Brook Street (UK) Ltd,30606765,431.84,Not Applicable,
Department for Business Energy and Industrial Strategy,Intellectual Property Office,15/09/2017,Pay Costs,People Places & Serv Directorate,Brook Street (UK) Ltd,30606765,437.04,Not Applicable,
Department for Business Energy and Industrial Strategy,Intellectual Property Office,04/09/2017,Pay Costs,People Places & Serv Directorate,Brook Street (UK) Ltd,30595551,438.22,Not Applicable,
Department for Business Energy and Industrial Strategy,Intellectual Property Office,04/09/2017,Pay Costs,Trade Mark Directorate,Brook Street (UK) Ltd,30595551,474.48,Not Applicable,
Department for Business Energy and Industrial Strategy,Intellectual Property Office,29/09/2017,Pay Costs,Patent Directorate,Brook Street (UK) Ltd,30642368,474.48,Not Applicable,
Department for Business Energy and Industrial Strategy,Intellectual Property Office,15/09/2017,Pay Costs,Patent Directorate,Brook Street (UK) Ltd,30606765,476.48,Not Applicable,
Department for Business Energy and Industrial Strategy,Intellectual Property Office,04/09/2017,Pay Costs,Patent Directorate,Brook Street (UK) Ltd,30595551,480.73,Not Applicable,
Department for Business Energy and Industrial Strategy,Intellectual Property Office,15/09/2017,Pay Costs,Patent Directorate,Brook Street (UK) Ltd,30606765,480.73,Not Applicable,
Department for Business Energy and Industrial Strategy,Intellectual Property Office,29/09/2017,Pay Costs,Patent Directorate,Brook Street (UK) Ltd,30618274,480.73,Not Applicable,
Department for Business Energy and Industrial Strategy,Intellectual Property Office,19/09/2017,Pay Costs,People Places & Serv Directorate,Acorn Recruitment Ltd,851245,501.48,Not Applicable,
Department for Business Energy and Industrial Strategy,Intellectual Property Office,25/09/2017,Pay Costs,Patent Directorate,Brook Street (UK) Ltd,30630110,503.05,Not Applicable,
Department for Business Energy and Industrial Strategy,Intellectual Property Office,29/09/2017,Pay Costs,People Places & Serv Directorate,Brook Street (UK) Ltd,30642368,533.63,Not Applicable,
Department for Business Energy and Industrial Strategy,Intellectual Property Office,19/09/2017,Pay Costs,People Places & Serv Directorate,Acorn Recruitment Ltd,851244,535.37,Not Applicable,
Department for Business Energy and Industrial Strategy,Intellectual Property Office,29/09/2017,Pay Costs,People Places & Serv Directorate,Brook Street (UK) Ltd,30642368,535.85,Not Applicable,
Department for Business Energy and Industrial Strategy,Intellectual Property Office,25/09/2017,Pay Costs,People Places & Serv Directorate,Brook Street (UK) Ltd,30630111,546.30,Not Applicable,
Department for Business Energy and Industrial Strategy,Intellectual Property Office,29/09/2017,Pay Costs,People Places & Serv Directorate,Brook Street (UK) Ltd,30642368,546.30,Not Applicable,
Department for Business Energy and Industrial Strategy,Intellectual Property Office,04/09/2017,Pay Costs,Patent Directorate,Brook Street (UK) Ltd,30595551,548.33,Not Applicable,
Department for Business Energy and Industrial Strategy,Intellectual Property Office,29/09/2017,Pay Costs,Patent Directorate,Brook Street (UK) Ltd,30642368,554.06,Not Applicable,
Department for Business Energy and Industrial Strategy,Intellectual Property Office,25/09/2017,Pay Costs,Patent Directorate,Brook Street (UK) Ltd,30630111,578.51,Not Applicable,
Department for Business Energy and Industrial Strategy,Intellectual Property Office,04/09/2017,Pay Costs,Patent Directorate,Brook Street (UK) Ltd,30595551,593.10,Not Applicable,
Department for Business Energy and Industrial Strategy,Intellectual Property Office,19/09/2017,Pay Costs,People Places & Serv Directorate,Acorn Recruitment Ltd,851971,597.60,Not Applicable,
Department for Business Energy and Industrial Strategy,Intellectual Property Office,04/09/2017,Pay Costs,Patent Directorate,Brook Street (UK) Ltd,30595551,602.95,Not Applicable,
Department for Business Energy and Industrial Strategy,Intellectual Property Office,29/09/2017,Pay Costs,Patent Directorate,Brook Street (UK) Ltd,30642368,602.95,Not Applicable,
Department for Business Energy and Industrial Strategy,Intellectual Property Office,29/09/2017,Pay Costs,Patent Directorate,Brook Street (UK) Ltd,30642368,605.70,Not Applicable,
Department for Business Energy and Industrial Strategy,Intellectual Property Office,26/09/2017,Pay Costs,People Places & Serv Directorate,Acorn Recruitment Ltd,852679,610.14,Not Applicable,
Department for Business Energy and Industrial Strategy,Intellectual Property Office,29/09/2017,Pay Costs,Patent Directorate,Brook Street (UK) Ltd,30618274,613.78,Not Applicable,
Department for Business Energy and Industrial Strategy,Intellectual Property Office,25/09/2017,Pay Costs,Patent Directorate,Brook Street (UK) Ltd,30630111,615.17,Not Applicable,
Department for Business Energy and Industrial Strategy,Intellectual Property Office,04/09/2017,Pay Costs,Patent Directorate,Brook Street (UK) Ltd,30595551,621.85,Not Applicable,
Department for Business Energy and Industrial Strategy,Intellectual Property Office,19/09/2017,Pay Costs,People Places & Serv Directorate,Acorn Recruitment Ltd,851972,639.38,Not Applicable,
Department for Business Energy and Industrial Strategy,Intellectual Property Office,25/09/2017,Pay Costs,People Places & Serv Directorate,Brook Street (UK) Ltd,30630111,644.64,Not Applicable,
Department for Business Energy and Industrial Strategy,Intellectual Property Office,26/09/2017,Pay Costs,People Places & Serv Directorate,Acorn Recruitment Ltd,852680,651.92,Not Applicable,
Department for Business Energy and Industrial Strategy,Intellectual Property Office,06/09/2017,Pay Costs,People Places & Serv Directorate,Acorn Recruitment Ltd,850497,662.98,Not Applicable,
Department for Business Energy and Industrial Strategy,Intellectual Property Office,27/09/2017,Pay Costs,People Places & Serv Directorate,Acorn Recruitment Ltd,852678,667.27,Not Applicable,
Department for Business Energy and Industrial Strategy,Intellectual Property Office,15/09/2017,Pay Costs,Patent Directorate,Brook Street (UK) Ltd,30606765,790.74,Not Applicable,
Department for Business Energy and Industrial Strategy,Intellectual Property Office,04/09/2017,Pay Costs,People Places & Serv Directorate,C2W Support,33828,804.00,Not Applicable,
Department for Business Energy and Industrial Strategy,Intellectual Property Office,29/09/2017,Pay Costs,Patent Directorate,Brook Street (UK) Ltd,30618274,826.73,Not Applicable,
Department for Business Energy and Industrial Strategy,Intellectual Property Office,29/09/2017,Pay Costs,People Places & Serv Directorate,Brook Street (UK) Ltd,30618274,1087.00,Not Applicable,
Department for Business Energy and Industrial Strategy,Intellectual Property Office,04/09/2017,Pay Costs,Patent Directorate,Brook Street (UK) Ltd,30595551,1303.84,Not Applicable,
Department for Business Energy and Industrial Strategy,Intellectual Property Office,29/09/2017,Pay Costs,Patent Directorate,Brook Street (UK) Ltd,30642368,1644.49,Not Applicable,
Department for Business Energy and Industrial Strategy,Intellectual Property Office,25/09/2017,Pay Costs,Patent Directorate,Brook Street (UK) Ltd,30630111,2247.17,Not Applicable,
Department for Business Energy and Industrial Strategy,Intellectual Property Office,25/09/2017,Pay Costs,Patent Directorate,Brook Street (UK) Ltd,30630111,2430.38,Not Applicable,
Department for Business Energy and Industrial Strategy,Intellectual Property Office,15/09/2017,Pay Costs,Patent Directorate,Brook Street (UK) Ltd,30606765,4001.07,Not Applicable,
Department for Business Energy and Industrial Strategy,Intellectual Property Office,25/09/2017,Pay Costs,Patent Directorate,Brook Street (UK) Ltd,30630111,4345.78,Not Applicable,
Department for Business Energy and Industrial Strategy,Intellectual Property Office,29/09/2017,Pay Costs,Patent Directorate,Brook Street (UK) Ltd,30618274,5304.26,Not Applicable,
Department for Business Energy and Industrial Strategy,Intellectual Property Office,25/09/2017,Pay Costs,Patent Directorate,Brook Street (UK) Ltd,30630111,5397.09,Not Applicable,
Department for Business Energy and Industrial Strategy,Intellectual Property Office,04/09/2017,Pay Costs,Patent Directorate,Brook Street (UK) Ltd,30595551,5734.22,Not Applicable,
Department for Business Energy and Industrial Strategy,Intellectual Property Office,04/09/2017,Pay Costs,Patent Directorate,Brook Street (UK) Ltd,30595551,5762.53,Not Applicable,
Department for Business Energy and Industrial Strategy,Intellectual Property Office,15/09/2017,Pay Costs,Patent Directorate,Brook Street (UK) Ltd,30606765,6089.02,Not Applicable,
Department for Business Energy and Industrial Strategy,Intellectual Property Office,29/09/2017,Pay Costs,Patent Directorate,Brook Street (UK) Ltd,30642368,6220.43,Not Applicable,
Department for Business Energy and Industrial Strategy,Intellectual Property Office,29/09/2017,Pay Costs,Patent Directorate,Brook Street (UK) Ltd,30642368,6394.77,Not Applicable,
Department for Business Energy and Industrial Strategy,Intellectual Property Office,29/09/2017,Pay Costs,Patent Directorate,Brook Street (UK) Ltd,30618274,9988.89,Not Applicable,
Department for Business Energy and Industrial Strategy,Intellectual Property Office,12/09/2017,Pay Costs,People Places & Serv Directorate,HM REVENUE & CUSTOMS,XJ007347071544,21701.00,Not Applicable,
Department for Business Energy and Industrial Strategy,Intellectual Property Office,20/09/2017,Postage & Delivery Costs,People Places & Serv Directorate,DHL International (UK) Ltd,BRS0764316,530.58,Not Applicable,
Department for Business Energy and Industrial Strategy,Intellectual Property Office,13/09/2017,Postage & Delivery Costs,People Places & Serv Directorate,DHL International (UK) Ltd,BRS0745741,831.23,Not Applicable,
Department for Business Energy and Industrial Strategy,Intellectual Property Office,13/09/2017,Postage & Delivery Costs,People Places & Serv Directorate,DHL International (UK) Ltd,BRS0745741,1070.94,Not Applicable,
Department for Business Energy and Industrial Strategy,Intellectual Property Office,13/09/2017,Postage & Delivery Costs,People Places & Serv Directorate,Royal Mail,9055112922,1454.28,Not Applicable,
Department for Business Energy and Industrial Strategy,Intellectual Property Office,22/09/2017,Postage & Delivery Costs,People Places & Serv Directorate,Parcelforce Worldwide,9055183782,1461.43,Not Applicable,
Department for Business Energy and Industrial Strategy,Intellectual Property Office,27/09/2017,Postage & Delivery Costs,People Places & Serv Directorate,Royal Mail,9055196529,1522.45,Not Applicable,
Department for Business Energy and Industrial Strategy,Intellectual Property Office,28/09/2017,Postage & Delivery Costs,People Places & Serv Directorate,DHL International (UK) Ltd,BRS0782145,5208.92,Not Applicable,
Department for Business Energy and Industrial Strategy,Intellectual Property Office,08/09/2017,Postage & Delivery Costs,People Places & Serv Directorate,CitySprint (UK) Ltd,2273660,7405.31,Not Applicable,
Department for Business Energy and Industrial Strategy,Intellectual Property Office,19/09/2017,Postage & Delivery Costs,People Places & Serv Directorate,Neopost Finance Ltd,NE9000335-18SEP,10000.00,Not Applicable,
Department for Business Energy and Industrial Strategy,Intellectual Property Office,11/09/2017,Staff Costs,Patent Directorate,Welsh Assembly Government,1800069837,600.00,Not Applicable,
Department for Business Energy and Industrial Strategy,Intellectual Property Office,20/09/2017,Staff Costs,People Places & Serv Directorate,British Red Cross,N1138614,645.60,Not Applicable,
Department for Business Energy and Industrial Strategy,Intellectual Property Office,22/09/2017,Staff Costs,People Places & Serv Directorate,ST JOHN AMBULANCE SHARED SERVICES CENTRE,110648,662.40,Not Applicable,
Department for Business Energy and Industrial Strategy,Intellectual Property Office,22/09/2017,Staff Costs,People Places & Serv Directorate,ST JOHN AMBULANCE SHARED SERVICES CENTRE,110654,662.40,Not Applicable,
Department for Business Energy and Industrial Strategy,Intellectual Property Office,29/09/2017,Staff Costs,People Places & Serv Directorate,Involve Me Training and Development Ltd,159,600.00,Not Applicable,
Department for Business Energy and Industrial Strategy,Intellectual Property Office,29/09/2017,Staff Costs,People Places & Serv Directorate,Involve Me Training and Development Ltd,160,600.00,Not Applicable,
Department for Business Energy and Industrial Strategy,Intellectual Property Office,29/09/2017,Staff Costs,People Places & Serv Directorate,Involve Me Training and Development Ltd,161,600.00,Not Applicable,
Department for Business Energy and Industrial Strategy,Intellectual Property Office,07/09/2017,Staff Costs,People Places & Serv Directorate,Quadrilect Ltd,34226,834.00,Not Applicable,
Department for Business Energy and Industrial Strategy,Intellectual Property Office,01/09/2017,Staff Costs,Innovation Directorate,Enterprise Educators UK,2935,766.00,Not Applicable,
Department for Business Energy and Industrial Strategy,Intellectual Property Office,14/09/2017,Staff Costs,People Places & Serv Directorate,Acorn Recruitment Ltd,APS030007,1020.00,Not Applicable,
Department for Business Energy and Industrial Strategy,Intellectual Property Office,18/09/2017,Staff Costs,IT Directorate,Pink Elephant EMEA Ltd,17700326,1074.00,Not Applicable,
Department for Business Energy and Industrial Strategy,Intellectual Property Office,19/09/2017,Staff Costs,People Places & Serv Directorate,Knowledge Academy,239784,1194.00,Not Applicable,
Department for Business Energy and Industrial Strategy,Intellectual Property Office,29/09/2017,Staff Costs,People Places & Serv Directorate,The Clive Davis Partnership Ltd.,CDSC-2748,1440.00,Not Applicable,
Department for Business Energy and Industrial Strategy,Intellectual Property Office,29/09/2017,Staff Costs,People Places & Serv Directorate,Involve Me Training and Development Ltd,162,1200.00,Not Applicable,
Department for Business Energy and Industrial Strategy,Intellectual Property Office,29/09/2017,Staff Costs,People Places & Serv Directorate,Involve Me Training and Development Ltd,163,2400.00,Not Applicable,
Department for Business Energy and Industrial Strategy,Intellectual Property Office,04/09/2017,Staff Costs,People Places & Serv Directorate,KPMG LLP (CSL),5501495530,3000.00,Not Applicable,
Department for Business Energy and Industrial Strategy,Intellectual Property Office,18/09/2017,Staff Costs,Finance Directorate,Advanced Business Solutions,ARBK-99043875,3762.00,Not Applicable,
Department for Business Energy and Industrial Strategy,Intellectual Property Office,18/09/2017,Staff Costs,People Places & Serv Directorate,Acorns Nurseries Ltd,13045,3712.50,Not Applicable,
Department for Business Energy and Industrial Strategy,Intellectual Property Office,18/09/2017,Staff Costs,People Places & Serv Directorate,Sodexo Motivation Solutions UK Ltd,3352136,8135.16,Not Applicable,
Department for Business Energy and Industrial Strategy,Intellectual Property Office,18/09/2017,Staff Costs,People Places & Serv Directorate,Sodexo Motivation Solutions UK Ltd,3352176,11166.81,Not Applicable,
Department for Business Energy and Industrial Strategy,Intellectual Property Office,26/09/2017,Staff Costs,People Places & Serv Directorate,Celartem Inc,1009596,14030.00,Not Applicable,
Department for Business Energy and Industrial Strategy,Intellectual Property Office,18/09/2017,Staff Costs,People Places & Serv Directorate,Korn Ferry Hay Group (CSL),1195016253,20460.00,Not Applicable,
Department for Business Energy and Industrial Strategy,Intellectual Property Office,18/09/2017,Staff Costs,People Places & Serv Directorate,Korn Ferry Hay Group (CSL),1195017613,20460.00,Not Applicable,
Department for Business Energy and Industrial Strategy,Intellectual Property Office,26/09/2017,Staff Costs,People Places & Serv Directorate,Hays Specialist Recruitment,1007904239,21083.04,Not Applicable,
Department for Business Energy and Industrial Strategy,Intellectual Property Office,25/09/2017,Supporting UK Business,Innovation Directorate,DAN ANTHONY PRESENTATIONS LTD,177,800.00,Not Applicable,
Department for Business Energy and Industrial Strategy,Intellectual Property Office,20/09/2017,Supporting UK Business,Innovation Directorate,HARPER MACLEOD LLP,D915929,2520.00,Not Applicable,
Department for Business Energy and Industrial Strategy,Intellectual Property Office,20/09/2017,Supporting UK Business,Innovation Directorate,Bartle Read Ltd,3360,2599.99,Not Applicable,
Department for Business Energy and Industrial Strategy,Intellectual Property Office,04/09/2017,Supporting UK Business,Innovation Directorate,Creation IP Ltd,IV1935,2600.00,Not Applicable,
Department for Business Energy and Industrial Strategy,Intellectual Property Office,13/09/2017,Supporting UK Business,Innovation Directorate,Harrison Goddard Foote,450676,2600.00,Not Applicable,
Department for Business Energy and Industrial Strategy,Intellectual Property Office,13/09/2017,Supporting UK Business,Innovation Directorate,Lincoln IP,7504,2600.00,Not Applicable,
Department for Business Energy and Industrial Strategy,Intellectual Property Office,01/09/2017,Supporting UK Business,Innovation Directorate,Marks & Clerk LLP,7086739,2600.00,Not Applicable,
Department for Business Energy and Industrial Strategy,Intellectual Property Office,20/09/2017,Supporting UK Business,Innovation Directorate,Marks & Clerk LLP,7087572,2600.00,Not Applicable,
Department for Business Energy and Industrial Strategy,Intellectual Property Office,04/09/2017,Supporting UK Business,Innovation Directorate,Venner Shipley  LLP,307641,2600.00,Not Applicable,
Department for Business Energy and Industrial Strategy,Intellectual Property Office,01/09/2017,Supporting UK Business,Innovation Directorate,LAWRIE INTELLECTUAL PROPERTY,110082,2600.00,Not Applicable,
Department for Business Energy and Industrial Strategy,Intellectual Property Office,28/09/2017,Supporting UK Business,Innovation Directorate,LAWRIE INTELLECTUAL PROPERTY,110328,2600.00,Not Applicable,
Department for Business Energy and Industrial Strategy,Intellectual Property Office,25/09/2017,Supporting UK Business,Innovation Directorate,LAWRIE INTELLECTUAL PROPERTY,110448,2600.00,Not Applicable,
Department for Business Energy and Industrial Strategy,Intellectual Property Office,08/09/2017,Supporting UK Business,Innovation Directorate,LAWRIE INTELLECTUAL PROPERTY,110451,2600.00,Not Applicable,
Department for Business Energy and Industrial Strategy,Intellectual Property Office,08/09/2017,Supporting UK Business,Innovation Directorate,LAWRIE INTELLECTUAL PROPERTY,110454,2600.00,Not Applicable,
Department for Business Energy and Industrial Strategy,Intellectual Property Office,01/09/2017,Supporting UK Business,Innovation Directorate,INNGOT LTD,N1708-3,2600.00,Not Applicable,
Department for Business Energy and Industrial Strategy,Intellectual Property Office,27/09/2017,Supporting UK Business,Innovation Directorate,INNGOT LTD,N1709-7,2600.00,Not Applicable,
Department for Business Energy and Industrial Strategy,Intellectual Property Office,27/09/2017,Supporting UK Business,Innovation Directorate,STEPHENS SCOWN LLP,81256,2600.00,Not Applicable,
Department for Business Energy and Industrial Strategy,Intellectual Property Office,04/09/2017,Supporting UK Business,Innovation Directorate,CAMERON INTELLECTUAL PROPERTY LTD,2600-17,2600.00,Not Applicable,
Department for Business Energy and Industrial Strategy,Intellectual Property Office,27/09/2017,Supporting UK Business,Innovation Directorate,Burley Law Ltd,INV-0402,2600.00,Not Applicable,
Department for Business Energy and Industrial Strategy,Intellectual Property Office,01/09/2017,Supporting UK Business,Innovation Directorate,Coller IP Management Ltd,9698,2600.00,Not Applicable,
Department for Business Energy and Industrial Strategy,Intellectual Property Office,04/09/2017,Supporting UK Business,Innovation Directorate,K. W. Peter & Co,101744,2600.00,Not Applicable,
Department for Business Energy and Industrial Strategy,Intellectual Property Office,25/09/2017,Supporting UK Business,Innovation Directorate,K. W. Peter & Co,101750,2600.00,Not Applicable,
Department for Business Energy and Industrial Strategy,Intellectual Property Office,01/09/2017,Supporting UK Business,Innovation Directorate,Ablett & Stebbing,255516,2600.00,Not Applicable,
Department for Business Energy and Industrial Strategy,Intellectual Property Office,11/09/2017,Supporting UK Business,Innovation Directorate,Bridle Intellectual Property Limited,133-009,2600.00,Not Applicable,
Department for Business Energy and Industrial Strategy,Intellectual Property Office,04/09/2017,Supporting UK Business,Innovation Directorate,AA Thornton & Co,SINV-133333,2600.00,Not Applicable,
Department for Business Energy and Industrial Strategy,Intellectual Property Office,04/09/2017,Supporting UK Business,Innovation Directorate,Keltie LLP,120680,2600.00,Not Applicable,
Department for Business Energy and Industrial Strategy,Intellectual Property Office,20/09/2017,Supporting UK Business,Innovation Directorate,EIP Europe LLP,65473,2600.00,Not Applicable,
Department for Business Energy and Industrial Strategy,Intellectual Property Office,13/09/2017,Supporting UK Business,Innovation Directorate,Symbiosis IP Ltd,3001-17,2600.00,Not Applicable,
Department for Business Energy and Industrial Strategy,Intellectual Property Office,20/09/2017,Supporting UK Business,International Policy Directorate,FOREIGN & COMMONWEALTH OFFICE,1098393,6491.29,Not Applicable,
Department for Business Energy and Industrial Strategy,Intellectual Property Office,15/09/2017,Supporting UK Business,International Policy Directorate,FOREIGN & COMMONWEALTH OFFICE,1098255,18165.07,Not Applicable,
Department for Business Energy and Industrial Strategy,Intellectual Property Office,27/09/2017,Supporting UK Business,International Policy Directorate,FOREIGN & COMMONWEALTH OFFICE,1098045,22661.33,Not Applicable,
Department for Business Energy and Industrial Strategy,Intellectual Property Office,14/09/2017,Supporting UK Business,Copyright and Enforcement Directorate,Creative Content UK Partnership Ltd,25,792770.44,Not Applicable,
Department for Business Energy and Industrial Strategy,Intellectual Property Office,14/09/2017,Telecoms,IT Directorate,VIRGIN MEDIA,409092201-12SEP,554.33,Not Applicable,
Department for Business Energy and Industrial Strategy,Intellectual Property Office,06/09/2017,Telecoms,IT Directorate,VIRGIN MEDIA,917218-01SEP,601.74,Not Applicable,
Department for Business Energy and Industrial Strategy,Intellectual Property Office,05/09/2017,Telecoms,Finance Directorate,Banner Group Limited,9359192,752.78,Not Applicable,
Department for Business Energy and Industrial Strategy,Intellectual Property Office,04/09/2017,Telecoms,IT Directorate,Personal expenses,AHL13969871,771.46,Not Applicable,
Department for Business Energy and Industrial Strategy,Intellectual Property Office,04/09/2017,Telecoms,IT Directorate,ZEN INTERNET LIMITED,23603832,2852.83,Not Applicable,
Department for Business Energy and Industrial Strategy,Intellectual Property Office,11/09/2017,Telecoms,IT Directorate,British  Telecom,GP00002104M0494J,3056.23,Not Applicable,
Department for Business Energy and Industrial Strategy,Intellectual Property Office,22/09/2017,Telecoms,IT Directorate,Gamma Telecom Ltd,GA1376096,3297.36,Not Applicable,
Department for Business Energy and Industrial Strategy,Intellectual Property Office,08/09/2017,Telecoms,IT Directorate,Personal expenses,UK10-092017-3357,3322.08,Not Applicable,
Department for Business Energy and Industrial Strategy,Intellectual Property Office,05/09/2017,Telecoms,IT Directorate,Vodafone Corporate Ltd,85108583,3298.01,Not Applicable,
Department for Business Energy and Industrial Strategy,Intellectual Property Office,25/09/2017,Telecoms,IT Directorate,Vodafone Corporate Ltd,85411240,3424.05,Not Applicable,
Department for Business Energy and Industrial Strategy,Intellectual Property Office,18/09/2017,Telecoms,IT Directorate,British  Telecom,M18901,8312.66,Not Applicable,
Department for Business Energy and Industrial Strategy,Intellectual Property Office,13/09/2017,Telecoms,IT Directorate,British  Telecom,26148064-Q022,8448.46,Not Applicable,
Department for Business Energy and Industrial Strategy,Intellectual Property Office,13/09/2017,Telecoms,IT Directorate,British  Telecom,26148199-Q023,9029.38,Not Applicable,
Department for Business Energy and Industrial Strategy,Intellectual Property Office,14/09/2017,Telecoms,IT Directorate,Personal expenses,UK10-092017-9074,14523.29,Not Applicable,
Department for Business Energy and Industrial Strategy,Intellectual Property Office,08/09/2017,Travel & Subsistence,Patent Directorate,Veezu Ltd T/A Dragon Taxis (Newport),3706,7.80,Not Applicable,
Department for Business Energy and Industrial Strategy,Intellectual Property Office,08/09/2017,Travel & Subsistence,Copyright and Enforcement Directorate,Veezu Ltd T/A Dragon Taxis (Newport),3706,7.80,Not Applicable,
Department for Business Energy and Industrial Strategy,Intellectual Property Office,08/09/2017,Travel & Subsistence,People Places & Serv Directorate,Veezu Ltd T/A Dragon Taxis (Newport),3706,7.80,Not Applicable,
Department for Business Energy and Industrial Strategy,Intellectual Property Office,08/09/2017,Travel & Subsistence,Copyright and Enforcement Directorate,Veezu Ltd T/A Dragon Taxis (Newport),3706,15.60,Not Applicable,
Department for Business Energy and Industrial Strategy,Intellectual Property Office,08/09/2017,Travel & Subsistence,People Places & Serv Directorate,Veezu Ltd T/A Dragon Taxis (Newport),3706,17.52,Not Applicable,
Department for Business Energy and Industrial Strategy,Intellectual Property Office,08/09/2017,Travel & Subsistence,IT Directorate,Veezu Ltd T/A Dragon Taxis (Newport),3706,19.92,Not Applicable,
Department for Business Energy and Industrial Strategy,Intellectual Property Office,08/09/2017,Travel & Subsistence,Innovation Directorate,Veezu Ltd T/A Dragon Taxis (Newport),3706,23.40,Not Applicable,
Department for Business Energy and Industrial Strategy,Intellectual Property Office,08/09/2017,Travel & Subsistence,Innovation Directorate,Veezu Ltd T/A Dragon Taxis (Newport),3706,28.80,Not Applicable,
Department for Business Energy and Industrial Strategy,Intellectual Property Office,08/09/2017,Travel & Subsistence,Innovation Directorate,Veezu Ltd T/A Dragon Taxis (Newport),3706,31.20,Not Applicable,
Department for Business Energy and Industrial Strategy,Intellectual Property Office,08/09/2017,Travel & Subsistence,Copyright and Enforcement Directorate,Veezu Ltd T/A Dragon Taxis (Newport),3706,54.60,Not Applicable,
Department for Business Energy and Industrial Strategy,Intellectual Property Office,14/09/2017,Travel & Subsistence,Finance Directorate,Companies House,S0001938883,125.00,Not Applicable,
Department for Business Energy and Industrial Strategy,Intellectual Property Office,08/09/2017,Travel & Subsistence,International Policy Directorate,Veezu Ltd T/A Dragon Taxis (Newport),3706,224.64,Not Applicable,
Department for Business Energy and Industrial Strategy,Intellectual Property Office,26/09/2017,Travel & Subsistence,Copyright and Enforcement Directorate,Personal expenses,OS000000429,1177.11,Not Applicable,
Department for Business Energy and Industrial Strategy,Intellectual Property Office,26/09/2017,Travel & Subsistence,International Policy Directorate,Personal expenses,OS000000428,1499.51,Not Applicable,
Department for Business Energy and Industrial Strategy,Intellectual Property Office,05/09/2017,Fixed Telecoms Equipment,IT Directorate,Www.Talktalkbusiness.C,H57720170907beaoxjtlu,975.41,Not Applicable,
Department for Business Energy and Industrial Strategy,Intellectual Property Office,21/09/2017,Network and infrastructure H/W,IT Directorate,Amazon Prime,H57720170924cewddswod,79.00,Not Applicable,
Department for Business Energy and Industrial Strategy,Intellectual Property Office,08/09/2017,Network and infrastructure H/W,IT Directorate,Amazon.Co.Uk,H57720170912uqyfvvuqw,139.80,Not Applicable,
Department for Business Energy and Industrial Strategy,Intellectual Property Office,07/09/2017,Network and infrastructure H/W,IT Directorate,Amazon UK Retail,H57720170909zrgqhbkop,149.95,Not Applicable,
Department for Business Energy and Industrial Strategy,Intellectual Property Office,01/09/2017,Network and infrastructure H/W,IT Directorate,Amz*printerland Uk,H57720170905txvhfujho,183.00,Not Applicable,
Department for Business Energy and Industrial Strategy,Intellectual Property Office,12/09/2017,Network and infrastructure H/W,IT Directorate,Www.Fruitycables.Co.Uk,H57720170914kylmwhpod,111.13,Not Applicable,
Department for Business Energy and Industrial Strategy,Intellectual Property Office,03/09/2017,Network and infrastructure H/W,IT Directorate,Amazon UK Marketplace,H57720170905bwhbvdflh,17.57,Not Applicable,
Department for Business Energy and Industrial Strategy,Intellectual Property Office,16/09/2017,Perpetual Licences,IT Directorate,Surveymonkey,H57720170919mbmapbbto,230.83,Not Applicable,
Department for Business Energy and Industrial Strategy,Intellectual Property Office,05/09/2017,Perpetual Licences,IT Directorate,Websitepulse.Com,H57720170908dxggsvkfr,75.76,Not Applicable,
Department for Business Energy and Industrial Strategy,Intellectual Property Office,18/09/2017,Perpetual Licences,IT Directorate,Meetingzone Ltd,H57720170920qivmfbbmu,380.26,Not Applicable,
Department for Business Energy and Industrial Strategy,Intellectual Property Office,31/08/2017,Career Development Services,IT Directorate,Open University,H57720170902fdfhxwifs,958.00,Not Applicable,
Department for Business Energy and Industrial Strategy,Intellectual Property Office,16/09/2017,Books,IT Directorate,Amazon UK Retail Amazon.C,H57720170919gjhclviyy,32.26,Not Applicable,
Department for Business Energy and Industrial Strategy,Intellectual Property Office,16/09/2017,Books,IT Directorate,Amazon UK Retail,H57720170919lbxkakvnb,24.35,Not Applicable,
Department for Business Energy and Industrial Strategy,Intellectual Property Office,05/09/2017,Network and infrastructure H/W,IT Directorate,Currys S/s,H57720170907gctijqkxj,329.00,Not Applicable,
Department for Business Energy and Industrial Strategy,Intellectual Property Office,16/09/2017,Seminars and Confereces,IT Directorate,Amazon UK Marketplace,H57720170919cytrcdwfs,1.37,Not Applicable,
Department for Business Energy and Industrial Strategy,Intellectual Property Office,15/09/2017,Seminars and Confereces,IT Directorate,Amazon UK Marketplace,H57720170919nhpvfkifl,12.97,Not Applicable,
Department for Business Energy and Industrial Strategy,Intellectual Property Office,15/09/2017,Seminars and Confereces,IT Directorate,Amazon UK Marketplace,H57720170919tuiekclql,1.49,Not Applicable,
Department for Business Energy and Industrial Strategy,Intellectual Property Office,15/09/2017,Seminars and Confereces,IT Directorate,Amazon UK Marketplace,H57720170919vjjpcmfdi,9.37,Not Applicable,
Department for Business Energy and Industrial Strategy,Intellectual Property Office,15/09/2017,Seminars and Confereces,IT Directorate,Amazon.Co.Uk,H57720170919xuddqiokw,3.73,Not Applicable,
Department for Business Energy and Industrial Strategy,Intellectual Property Office,15/09/2017,Seminars and Confereces,IT Directorate,Amazon UK Marketplace,H57720170919ybfofmghv,5.99,Not Applicable,
Department for Business Energy and Industrial Strategy,Intellectual Property Office,14/09/2017,Seminars and Confereces,IT Directorate,Amazon UK Retail,H57720170916ilnfyphmw,21.24,Not Applicable,
Department for Business Energy and Industrial Strategy,Intellectual Property Office,06/09/2017,Seminars and Confereces,IT Directorate,Tesco Store 2931,H57720170908fmjnihujk,54.94,Not Applicable,
Department for Business Energy and Industrial Strategy,Intellectual Property Office,06/09/2017,Seminars and Confereces,IT Directorate,Amazon UK Marketplace,H57720170908meeyoeicv,36.60,Not Applicable,
Department for Business Energy and Industrial Strategy,Intellectual Property Office,06/09/2017,Seminars and Confereces,IT Directorate,Amazon UK Marketplace,H57720170908swnbxyhgh,14.08,Not Applicable,
Department for Business Energy and Industrial Strategy,Intellectual Property Office,05/09/2017,Seminars and Confereces,IT Directorate,Amazon UK Marketplace,H57720170907ddjlworhk,7.35,Not Applicable,
Department for Business Energy and Industrial Strategy,Intellectual Property Office,05/09/2017,Seminars and Confereces,IT Directorate,Amazon.Co.Uk,H57720170907inbohksqo,1.00,Not Applicable,
Department for Business Energy and Industrial Strategy,Intellectual Property Office,05/09/2017,Seminars and Confereces,IT Directorate,Amazon UK Marketplace,H57720170907oclfquwgn,7.35,Not Applicable,
Department for Business Energy and Industrial Strategy,Intellectual Property Office,05/09/2017,Seminars and Confereces,IT Directorate,Amazon UK Marketplace,H57720170907odofmhglk,18.59,Not Applicable,
Department for Business Energy and Industrial Strategy,Intellectual Property Office,05/09/2017,Seminars and Confereces,IT Directorate,Amazon.Co.Uk,H57720170907vcrnthehf,16.92,Not Applicable,
Department for Business Energy and Industrial Strategy,Intellectual Property Office,04/09/2017,Entertainment,People Places & Serv Directorate,Marksandspencer.Co,H57720170906sxxsxxgvt,87.89,Not Applicable,
Department for Business Energy and Industrial Strategy,Intellectual Property Office,15/09/2017,Career Development Services,Innovation Directorate,Cim,H57720170919zbvygwazk,714.00,Not Applicable,
Department for Business Energy and Industrial Strategy,Intellectual Property Office,06/09/2017,Career Development Services,Innovation Directorate,Eb *cipr Cymru Wales A,H57720170908vowgjxfao,72.00,Not Applicable,
Department for Business Energy and Industrial Strategy,Intellectual Property Office,17/09/2017,Advertising Distribution,Innovation Directorate,Twitonomy.Com,H57720170919ndrddglsc,14.62,Not Applicable,
Department for Business Energy and Industrial Strategy,Intellectual Property Office,20/09/2017,Advertising Distribution,Innovation Directorate,Amazon.Co.Uk,H57720170922bdsyawshd,20.99,Not Applicable,
Department for Business Energy and Industrial Strategy,Intellectual Property Office,14/09/2017,Advertising Distribution,Innovation Directorate,Ges Limited,H57720170916muibgvnho,214.02,Not Applicable,
Department for Business Energy and Industrial Strategy,Intellectual Property Office,14/09/2017,Advertising Distribution,Innovation Directorate,Marksandspencer.Co,H57720170916ntolniijb,85.69,Not Applicable,
Department for Business Energy and Industrial Strategy,Intellectual Property Office,13/09/2017,Advertising Distribution,Innovation Directorate,Marksandspencer.Co,H57720170915nhgwqsjwf,85.69,Not Applicable,
Department for Business Energy and Industrial Strategy,Intellectual Property Office,12/09/2017,Advertising Distribution,Innovation Directorate,Marksandspencer.Co,H57720170914qcinsplgg,85.69,Not Applicable,
Department for Business Energy and Industrial Strategy,Intellectual Property Office,14/09/2017,Advertising Distribution,Innovation Directorate,Amazon UK Marketplace,H57720170916oeujsjbpl,21.02,Not Applicable,
Department for Business Energy and Industrial Strategy,Intellectual Property Office,08/09/2017,Advertising Distribution,Innovation Directorate,Amz*woteritrade,H57720170912pcwdftpbu,-9.98,Not Applicable,
Department for Business Energy and Industrial Strategy,Intellectual Property Office,18/09/2017,Entertainment,Copyright and Enforcement Directorate,Paypal,H57720170920fqgcevuhe,19.21,Not Applicable,
Department for Business Energy and Industrial Strategy,Intellectual Property Office,06/09/2017,Career Development Services,Finance Directorate,Www.Cips.Org,H57720170908gpvlgjsjg,206.04,Not Applicable,
Department for Business Energy and Industrial Strategy,Intellectual Property Office,05/09/2017,Miscellaneous Receipts,Finance Directorate,Dominos- Malpas Ro,H57720170907qipjfmsdm,137.47,Not Applicable,
Department for Business Energy and Industrial Strategy,Intellectual Property Office,25/09/2017,Office Stationery,Finance Directorate,Amazon UK Marketplace,H57720170927obqpywjkl,23.99,Not Applicable,
Department for Business Energy and Industrial Strategy,Intellectual Property Office,22/09/2017,Office Stationery,Finance Directorate,Amazon.Co.Uk,H57720170926sfcpbnlez,24.77,Not Applicable,
Department for Business Energy and Industrial Strategy,Intellectual Property Office,07/09/2017,Office Stationery,Finance Directorate,Amazon UK Marketplace,H57720170909aknhnleyb,17.74,Not Applicable,
Department for Business Energy and Industrial Strategy,Intellectual Property Office,26/09/2017,Office Stationery,Finance Directorate,Xma Ltd,H57720170928hmdgxzbld,98.10,Not Applicable,
Department for Business Energy and Industrial Strategy,Intellectual Property Office,26/09/2017,Office Stationery,Finance Directorate,Cartridge Save,H57720170928neofyjbbl,76.06,Not Applicable,
Department for Business Energy and Industrial Strategy,Intellectual Property Office,19/09/2017,Office Stationery,Finance Directorate,Xma Ltd,H57720170921gymuhldjm,689.37,Not Applicable,
Department for Business Energy and Industrial Strategy,Intellectual Property Office,19/09/2017,Office Stationery,Finance Directorate,Xma Ltd,H57720170921pqxjboubi,203.59,Not Applicable,
Department for Business Energy and Industrial Strategy,Intellectual Property Office,15/09/2017,Office Stationery,Finance Directorate,Xma Ltd,H57720170919snusfbjnd,319.92,Not Applicable,
Department for Business Energy and Industrial Strategy,Intellectual Property Office,15/09/2017,Office Stationery,Finance Directorate,Xma Ltd,H57720170919tlebflpfb,272.42,Not Applicable,
Department for Business Energy and Industrial Strategy,Intellectual Property Office,11/09/2017,Office Stationery,Finance Directorate,Xma Ltd,H57720170913amthanfps,228.31,Not Applicable,
Department for Business Energy and Industrial Strategy,Intellectual Property Office,07/09/2017,Office Stationery,Finance Directorate,Xma Ltd,H57720170909twkquoruy,131.21,Not Applicable,
Department for Business Energy and Industrial Strategy,Intellectual Property Office,07/09/2017,Office Stationery,Finance Directorate,Www.Ukpos.Com,H57720170909lxfpdqdej,32.70,Not Applicable,
Department for Business Energy and Industrial Strategy,Intellectual Property Office,22/09/2017,Career Development Services,People Places & Serv Directorate,Stonewall Equality,H57720170926zsqcgedak,936.00,Not Applicable,
Department for Business Energy and Industrial Strategy,Intellectual Property Office,07/09/2017,Placement Fees,People Places & Serv Directorate,Guardian News & Media,H57720170912cvintbmmo,900.00,Not Applicable,
Department for Business Energy and Industrial Strategy,Intellectual Property Office,07/09/2017,Placement Fees,People Places & Serv Directorate,Econjobscom,H57720170909nfjizipvv,600.00,Not Applicable,
Department for Business Energy and Industrial Strategy,Intellectual Property Office,27/09/2017,Network and infrastructure H/W,People Places & Serv Directorate,Asda,H57720170929dsmmziolv,5.90,Not Applicable,
Department for Business Energy and Industrial Strategy,Intellectual Property Office,27/09/2017,Network and infrastructure H/W,People Places & Serv Directorate,Amazon UK Retail Amazon.C,H57720170929nsfdfhybn,15.51,Not Applicable,
Department for Business Energy and Industrial Strategy,Intellectual Property Office,27/09/2017,Network and infrastructure H/W,People Places & Serv Directorate,Paypal,H57720170929yiegskbdb,55.40,Not Applicable,
Department for Business Energy and Industrial Strategy,Intellectual Property Office,26/09/2017,Network and infrastructure H/W,People Places & Serv Directorate,Asda Superstore 4928,H57720170928emzbuokvc,15.08,Not Applicable,
Department for Business Energy and Industrial Strategy,Intellectual Property Office,14/09/2017,Network and infrastructure H/W,People Places & Serv Directorate,Asda Superstore 4928,H57720170916rqudlegdg,5.00,Not Applicable,
Department for Business Energy and Industrial Strategy,Intellectual Property Office,01/09/2017,Network and infrastructure H/W,People Places & Serv Directorate,Poundland Ltd,H57720170905krlwnldxs,14.05,Not Applicable,
Department for Business Energy and Industrial Strategy,Intellectual Property Office,18/09/2017,Seminars and Confereces,People Places & Serv Directorate,Subway,H57720170920igiuhxqnj,57.60,Not Applicable,
Department for Business Energy and Industrial Strategy,Intellectual Property Office,01/09/2017,Seminars and Confereces,People Places & Serv Directorate,Coveritlive Scribbl Cov,H57720170905vodoesjtr,39.15,Not Applicable,
Department for Business Energy and Industrial Strategy,Intellectual Property Office,21/09/2017,Other,People Places & Serv Directorate,Amazon UK Marketplace,H57720170924obwkwgwrf,27.49,Not Applicable,
Department for Business Energy and Industrial Strategy,Intellectual Property Office,20/09/2017,Other,People Places & Serv Directorate,Amazon.Co.Uk,H57720170922syofmcwes,23.97,Not Applicable,
Department for Business Energy and Industrial Strategy,Intellectual Property Office,16/09/2017,Other,People Places & Serv Directorate,Subway,H57720170919oflokbflq,198.00,Not Applicable,
Department for Business Energy and Industrial Strategy,Intellectual Property Office,14/09/2017,Office Stationery,People Places & Serv Directorate,Kingspan Access Fl,H57720170916afvwwkane,603.60,Not Applicable,
Department for Business Energy and Industrial Strategy,Intellectual Property Office,14/09/2017,Office Stationery,People Places & Serv Directorate,Healthy Workstations Ltd,H57720170916ofzrjtagy,163.51,Not Applicable,
Department for Business Energy and Industrial Strategy,Intellectual Property Office,06/09/2017,Office Stationery,People Places & Serv Directorate,Newey & Eyre,H57720170912dfwniiyht,429.37,Not Applicable,
Department for Business Energy and Industrial Strategy,Intellectual Property Office,06/09/2017,Office Stationery,People Places & Serv Directorate,Newey & Eyre,H57720170912flnvihszw,-429.37,Not Applicable,
Department for Business Energy and Industrial Strategy,Intellectual Property Office,06/09/2017,Office Stationery,People Places & Serv Directorate,Newey & Eyre,H57720170912ndsundqjf,-429.36,Not Applicable,
Department for Business Energy and Industrial Strategy,Intellectual Property Office,06/09/2017,Office Stationery,People Places & Serv Directorate,Newey & Eyre,H57720170912qwqjewkff,429.37,Not Applicable,
Department for Business Energy and Industrial Strategy,Intellectual Property Office,05/09/2017,Office Stationery,People Places & Serv Directorate,Newey & Eyre,H57720170912utrhxvjmo,693.12,Not Applicable,
Department for Business Energy and Industrial Strategy,Intellectual Property Office,06/09/2017,Office Stationery,People Places & Serv Directorate,Superior Signs Limited,H57720170908fbrhuidnx,35.89,Not Applicable,
Department for Business Energy and Industrial Strategy,Intellectual Property Office,19/09/2017,Office Stationery,People Places & Serv Directorate,Ring O Roses,H57720170921zjcylxhey,160.00,Not Applicable,
Department for Business Energy and Industrial Strategy,Intellectual Property Office,15/09/2017,Office Stationery,People Places & Serv Directorate,Amazon UK Marketplace,H57720170919tekkkuial,184.55,Not Applicable,
Department for Business Energy and Industrial Strategy,Intellectual Property Office,14/09/2017,Office Stationery,People Places & Serv Directorate,Screwfix Direct,H57720170916zdiagwotl,92.98,Not Applicable,
Department for Business Energy and Industrial Strategy,Intellectual Property Office,25/09/2017,Office Stationery,People Places & Serv Directorate,South Wales Suppliers,H57720170927stidslzvz,47.00,Not Applicable,
Department for Business Energy and Industrial Strategy,Intellectual Property Office,22/09/2017,Office Stationery,People Places & Serv Directorate,Howdens - Newport D920,H57720170926rxdhnshed,203.99,Not Applicable,
Department for Business Energy and Industrial Strategy,Intellectual Property Office,13/09/2017,Office Stationery,People Places & Serv Directorate,Ao Retail Limited,H57720170915ggktopbfs,679.99,Not Applicable,
Department for Business Energy and Industrial Strategy,Intellectual Property Office,04/09/2017,Office Stationery,People Places & Serv Directorate,Screwfix Direct,H57720170906qptuklirf,20.98,Not Applicable,
Department for Business Energy and Industrial Strategy,Intellectual Property Office,01/09/2017,Office Stationery,People Places & Serv Directorate,Screwfix Direct,H57720170905dfcytqvgo,41.98,Not Applicable,
Department for Business Energy and Industrial Strategy,Intellectual Property Office,01/09/2017,Office Stationery,People Places & Serv Directorate,Www.Storagetrunks.Co.U,H57720170905sxdiejehl,127.00,Not Applicable,
Department for Business Energy and Industrial Strategy,Intellectual Property Office,02/09/2017,Office Stationery,People Places & Serv Directorate,Www.Staples.Co.Uk,H57720170905xizwxlluq,-65.95,Not Applicable,
Department for Business Energy and Industrial Strategy,Intellectual Property Office,31/08/2017,Office Stationery,People Places & Serv Directorate,Amazon UK Marketplace,H57720170902kramngxlu,77.61,Not Applicable,
Department for Business Energy and Industrial Strategy,Intellectual Property Office,19/09/2017,Office Stationery,People Places & Serv Directorate,Amazon UK Retail Amazon.C,H57720170921gntvlueqe,13.94,Not Applicable,
Department for Business Energy and Industrial Strategy,Intellectual Property Office,19/09/2017,Office Stationery,People Places & Serv Directorate,Amazon UK Retail,H57720170921rlmyfpfho,13.94,Not Applicable,
Department for Business Energy and Industrial Strategy,Intellectual Property Office,19/09/2017,Office Stationery,People Places & Serv Directorate,Amazon UK Retail,H57720170921vpnbzljmq,13.94,Not Applicable,
Department for Business Energy and Industrial Strategy,Intellectual Property Office,19/09/2017,Office Stationery,People Places & Serv Directorate,Amazon UK Retail,H57720170921xlbnvqeif,13.94,Not Applicable,
Department for Business Energy and Industrial Strategy,Intellectual Property Office,19/09/2017,Office Stationery,People Places & Serv Directorate,Amazon UK Retail,H57720170921xrtxrvxod,13.94,Not Applicable,
Department for Business Energy and Industrial Strategy,Intellectual Property Office,14/09/2017,Office Stationery,People Places & Serv Directorate,Www.Ukpos.Com,H57720170916lnbfjggoj,44.28,Not Applicable,
Department for Business Energy and Industrial Strategy,Intellectual Property Office,12/09/2017,Office Stationery,People Places & Serv Directorate,Amazon UK Retail,H57720170914earzectvy,41.50,Not Applicable,
Department for Business Energy and Industrial Strategy,Intellectual Property Office,11/09/2017,Office Stationery,People Places & Serv Directorate,Abertay International,H57720170913cbyabitvg,450.00,Not Applicable,
Department for Business Energy and Industrial Strategy,Intellectual Property Office,13/09/2017,Entertainment,People Places & Serv Directorate,Amazon UK Marketplace,H57720170915ekrxqvrcb,25.99,Not Applicable,
Department for Business Energy and Industrial Strategy,Intellectual Property Office,14/09/2017,Entertainment,People Places & Serv Directorate,Www.Nisbets.Com,H57720170916ominriesk,266.38,Not Applicable,
Department for Business Energy and Industrial Strategy,Intellectual Property Office,18/09/2017,Career Development Services,People Places & Serv Directorate,The Watershed Arts Tru,H57720170920swywbqeqm,150.00,Not Applicable,
Department for Business Energy and Industrial Strategy,Intellectual Property Office,14/09/2017,Career Development Services,People Places & Serv Directorate,Eb *rabble Talks Games,H57720170916shatbbrpn,27.84,Not Applicable,
Department for Business Energy and Industrial Strategy,Intellectual Property Office,07/09/2017,Career Development Services,People Places & Serv Directorate,Paypal,H57720170909njqoibwog,163.24,Not Applicable,
Department for Business Energy and Industrial Strategy,Intellectual Property Office,06/09/2017,Career Development Services,People Places & Serv Directorate,Asda Superstore 4928,H57720170908iesoonewl,16.60,Not Applicable,
Department for Business Energy and Industrial Strategy,Intellectual Property Office,31/08/2017,Career Development Services,People Places & Serv Directorate,Amazon UK Marketplace,H57720170902gtpkorrhy,15.99,Not Applicable,
Department for Business Energy and Industrial Strategy,Intellectual Property Office,31/08/2017,Career Development Services,People Places & Serv Directorate,Amazon UK Retail,H57720170902ibbhqheim,29.93,Not Applicable,
Department for Business Energy and Industrial Strategy,Intellectual Property Office,31/08/2017,Career Development Services,People Places & Serv Directorate,Amazon UK Marketplace,H57720170902kdutursbt,23.96,Not Applicable,
Department for Business Energy and Industrial Strategy,Intellectual Property Office,26/09/2017,Seminars and Confereces,People Places & Serv Directorate,Subway,H57720170928xvernfgqf,54.00,Not Applicable,
Department for Business Energy and Industrial Strategy,Intellectual Property Office,25/09/2017,Seminars and Confereces,People Places & Serv Directorate,Asda Stores 4837,H57720170927bbrwownqq,9.89,Not Applicable,
Department for Business Energy and Industrial Strategy,Intellectual Property Office,08/09/2017,Seminars and Confereces,People Places & Serv Directorate,Eb *6th Annual All Wal,H57720170912pmwjyxwdi,375.00,Not Applicable,
Department for Business Energy and Industrial Strategy,Intellectual Property Office,16/09/2017,Seminars and Confereces,People Places & Serv Directorate,Przcharge.Prezi.Com,H57720170919qgfrusqiw,15.60,Not Applicable,
Department for Business Energy and Industrial Strategy,Intellectual Property Office,19/09/2017,Minor Works-Goods,People Places & Serv Directorate,Newey & Eyre,H57720170924ngcxponqc,269.10,Not Applicable,
Department for Business Energy and Industrial Strategy,Intellectual Property Office,04/09/2017,Minor Works-Goods,People Places & Serv Directorate,Nukey,H57720170906oebcxejkr,428.40,Not Applicable,
Department for Business Energy and Industrial Strategy,Intellectual Property Office,04/09/2017,Minor Works-Goods,People Places & Serv Directorate,Western Power Distribu,H57720170906vtnajmwgq,250.79,Not Applicable,
Department for Business Energy and Industrial Strategy,Intellectual Property Office,22/09/2017,Minor Works-Goods,People Places & Serv Directorate,Aston Pharma,H57720170926pthqhrmjl,11.16,Not Applicable,
Department for Business Energy and Industrial Strategy,Intellectual Property Office,06/09/2017,Minor Works-Goods,People Places & Serv Directorate,Amazon UK Marketplace,H57720170908tnnehrnfx,289.90,Not Applicable,
Department for Business Energy and Industrial Strategy,Intellectual Property Office,23/09/2017,Entertainment,International Policy Directorate,Hr Palaces Ent Ltd,H57720170926nrnrpkkox,-54.94,Not Applicable,
Department for Business Energy and Industrial Strategy,Intellectual Property Office,22/09/2017,Seminars and Confereces,International Policy Directorate,Conrad St James London,H57720170926nkuxdbuxn,641.81,Not Applicable,
Department for Business Energy and Industrial Strategy,Intellectual Property Office,21/09/2017,Seminars and Confereces,International Policy Directorate,Cards Galore,H57720170926tdxknbxdy,3.99,Not Applicable,
Department for Business Energy and Industrial Strategy,Intellectual Property Office,21/09/2017,Seminars and Confereces,International Policy Directorate,Parliamentary Book Sho,H57720170924qwosfbvuy,21.05,Not Applicable,
Department for Business Energy and Industrial Strategy,Intellectual Property Office,19/09/2017,Seminars and Confereces,International Policy Directorate,Firecracker,H57720170921zdojjbmeu,-90.00,Not Applicable,
Department for Business Energy and Industrial Strategy,Intellectual Property Office,17/09/2017,Seminars and Confereces,International Policy Directorate,Amazon UK Retail,H57720170919vjxqkpvim,33.14,Not Applicable,
Department for Business Energy and Industrial Strategy,Intellectual Property Office,27/09/2017,Overseas Patent Specifications,Patent Directorate,Rei,H57720170929vqetfmkgp,33.24,Not Applicable,
Department for Business Energy and Industrial Strategy,Intellectual Property Office,16/09/2017,Software Maintenance,Trade Mark Directorate,The Intellectual Property,H57720170919ccyardphl,170.00,Not Applicable,
Department for Business Energy and Industrial Strategy,Intellectual Property Office,16/09/2017,Software Maintenance,Trade Mark Directorate,The Intellectual Property,H57720170919owkbnvjmz,170.00,Not Applicable,
Department for Business Energy and Industrial Strategy,Intellectual Property Office,07/09/2017,Software Maintenance,Trade Mark Directorate,The Intellectual Property,H57720170909ukiycpwgy,50.00,Not Applicable,
